bitfinex-derivatives/quotes_ETHF0:USTF0_20251006
["timestamp","ask_amount","ask_price","bid_price","bid_amount"]
[1759734121262,0.9634,4566.8,4566.7,0.7693]
[1759734121562,0.519,4566.8,4566.7,0.7693]
[1759734121764,0.739,4566.8,4566.7,0.7693]
[1759734121954,0.9634,4566.8,4566.7,0.7693]
[1759734122153,0.00227697,4567.1,4566.7,0.7693]
[1759734122354,0.00227697,4567.1,4567.0,0.8923]
[1759734122762,1.19966488,4567.9,4567.0,9.1001]
[1759734122963,0.022,4567.9,4567.8,0.7693]
[1759734123162,0.541,4567.9,4567.8,0.7693]
[1759734123354,0.2294,4567.9,4567.8,0.7693]
[1759734123759,0.23102933,4567.9,4567.8,0.7693]
[1759734123966,0.23102933,4567.9,4567.8,0.77176319]
[1759734124156,0.69864999,4567.9,4567.8,0.77176319]
[1759734124660,0.49124999,4567.9,4567.8,0.77176319]
[1759734124968,0.69864999,4567.9,4567.8,0.77176319]
[1759734125666,1.23464999,4567.9,4567.8,0.77176319]
[1759734126067,1.02724999,4567.9,4567.8,0.77176319]
[1759734126366,1.23024999,4567.9,4567.8,0.77176319]
[1759734126960,0.49124999,4567.9,4567.8,1.16570319]
[1759734127168,0.02362933,4567.9,4567.8,1.16570319]
[1759734127764,0.02362933,4567.9,4567.8,1.33697803]
[1759734130562,0.519,4569.0,4568.9,0.7693]
[1759734130763,0.66747897,4569.0,4568.9,0.7693]
[1759734130968,3.2078,4569.2,4568.9,0.7693]
[1759734130969,0.22,4569.1,4568.9,0.7693]
[1759734131157,0.22,4569.1,4568.8,0.39385]
[1759734131158,0.4274,4569.1,4569.0,0.8923]
[1759734131356,0.9651137,4569.1,4569.0,0.7693]
[1759734133369,0.2217137,4569.1,4569.0,0.8923]
[1759734134163,0.4291137,4569.1,4569.0,0.8923]
[1759734134361,1.3589437,4569.1,4569.0,0.7693]
[1759734134563,0.4291137,4569.1,4569.0,0.8923]
[1759734135358,0.7451137,4569.1,4569.0,0.8923]
[1759734135564,0.9651137,4569.1,4569.0,0.8923]
[1759734136469,0.4291137,4569.1,4569.0,0.8923]
[1759734137670,0.0017137,4569.1,4569.0,0.8923]
[1759734137870,0.5344137,4569.1,4569.0,0.8923]
[1759734138067,0.2231137,4569.1,4569.0,0.8923]
[1759734138869,0.0017137,4569.1,4569.0,0.8923]
[1759734140173,0.2231137,4569.1,4569.0,0.8923]
[1759734140978,0.5344137,4569.1,4569.0,0.8923]
[1759734141369,0.2231137,4569.1,4569.0,0.8923]
[1759734141570,0.7542137,4569.1,4569.0,0.8923]
[1759734142974,0.7542137,4569.1,4569.0,1.28614]
[1759734144381,0.2231137,4569.1,4569.0,1.28614]
[1759734144567,0.0017137,4569.1,4569.0,1.28614]
[1759734150790,0.0017137,4569.1,4569.0,1.50614]
[1759734155982,0.5275,4569.9,4569.8,1.13107]
[1759734156183,0.5275,4569.9,4569.8,0.2074]
[1759734156184,1.21037987,4569.9,4569.8,0.2074]
[1759734156487,1.21037987,4569.9,4569.5,0.7373]
[1759734156488,0.7675,4569.6,4569.5,0.7373]
[1759734156682,0.7675,4569.6,4569.5,0.8667]
[1759734156882,0.76997561,4569.6,4569.5,0.8667]
[1759734157487,0.00247561,4569.6,4569.5,4.0745]
[1759734158192,3.6463,4570.8,4570.7,0.2074]
[1759734158383,4.10714832,4570.8,4570.7,0.90719]
[1759734158582,4.10714832,4570.8,4570.5,0.6998]
[1759734158782,0.7675,4570.6,4570.5,0.9072]
[1759734158985,1.62204832,4570.6,4570.5,0.5135]
[1759734159185,0.4557,4570.5,4570.3,41.49982]
[1759734159388,0.8942,4570.5,4570.4,0.5135]
[1759734159582,0.329,4570.4,4570.3,40.8]
[1759734159783,0.72272,4570.4,4570.3,40.8]
[1759734160083,0.329,4570.4,4570.3,41.1061]
[1759734160283,0.7675,4570.4,4570.3,0.5135]
[1759734160583,1.16122,4570.4,4570.1,0.3061]
[1759734160985,1.16122,4570.4,4570.2,0.3061]
[1759734161188,0.39377,4569.8,4569.6,0.3061]
[1759734161387,0.5652,4570.0,4569.6,0.5135]
[1759734161388,0.7675,4569.7,4569.6,0.5135]
[1759734161786,0.7675,4569.6,4569.0,3.6369]
[1759734162086,0.7675,4569.2,4569.1,1.13112]
[1759734163087,0.7675,4569.2,4569.1,41.93112]
[1759734163689,0.4385,4569.2,4569.1,41.93112]
[1759734163893,0.2162,4569.2,4569.1,41.93112]
[1759734166789,0.2162,4569.2,4569.1,0.3061]
[1759734166790,0.7675,4569.2,4569.1,0.3061]
[1759734166994,0.329,4569.1,4569.0,3.2078]
[1759734167182,0.5452,4569.1,4569.0,3.4152]
[1759734167387,0.7675,4569.1,4569.0,3.639]
[1759734167788,0.7675,4569.1,4569.0,3.9654]
[1759734168392,0.7675,4569.1,4569.0,4.0926]
[1759734170099,0.7675,4569.1,4569.0,3.9654]
[1759734172095,0.222,4568.7,4568.6,1.3743881]
[1759734172292,0.4355,4568.4,4568.2,3.2078]
[1759734172493,0.95402,4568.0,4567.8,0.00246319]
[1759734172697,0.8958111,4567.9,4567.8,0.00246319]
[1759734172992,1.2317111,4567.9,4567.8,0.00246319]
[1759734173198,1.2317111,4567.9,4567.8,0.20756319]
[1759734173496,0.7714,4567.9,4567.8,0.20756319]
[1759734173697,1.23131699,4567.9,4567.8,0.00246319]
[1759734174395,0.7714,4567.9,4567.8,0.00246319]
[1759734174594,0.7714,4567.9,4567.8,0.20756319]
[1759734174795,0.7714,4567.9,4567.8,0.53396319]
[1759734175095,0.7714,4567.9,4567.8,0.20756319]
[1759734175699,0.7714,4567.9,4567.8,0.00246319]
[1759734177097,0.9914,4567.9,4567.8,0.20756319]
[1759734178096,5.9914,4567.9,4567.8,0.00246319]
[1759734178311,0.7714,4566.9,4566.8,0.5315]
[1759734178602,0.7714,4566.9,4566.8,0.2051]
[1759734178998,0.7714,4566.9,4566.8,0.5315]
[1759734179300,0.3359,4566.8,4566.7,3.7393]
[1759734179507,0.9914,4566.8,4566.7,3.94758712]
[1759734180396,0.00181684,4566.9,4566.8,1.13143]
[1759734182496,0.00181684,4566.9,4566.8,0.7374]
[1759734184107,0.00181684,4566.9,4566.8,1.13143]
[1759734185705,0.00181684,4566.9,4566.8,4.33923]
[1759734188004,3.72632,4568.0,4566.8,4.33923]
[1759734188005,0.7714,4568.0,4567.9,1.13133]
[1759734188211,0.1246,4568.5,4567.5,0.1272]
[1759734188212,0.4355,4568.4,4568.3,0.411]
[1759734188510,3.4298,4568.7,4568.6,0.411]
[1759734188815,3.4298,4568.7,4568.6,0.7374]
[1759734188816,0.222,4568.7,4568.6,0.7374]
[1759734189101,0.22415852,4568.7,4568.6,0.7374]
[1759734190097,0.56005852,4568.7,4568.6,0.7374]
[1759734190498,0.3359,4568.6,4568.3,41.1264]
[1759734190709,0.7714,4568.4,4568.3,0.3264]
[1759734190899,0.7714,4568.4,4568.3,0.7374]
[1759734194107,0.222,4568.4,4568.3,0.7374]
[1759734194307,0.22415852,4568.7,4568.6,1.13127]
[1759734194503,0.00215852,4568.7,4568.6,1.13127]
[1759734195307,0.7714,4569.8,4569.7,0.7374]
[1759734196212,0.3359,4570.2,4570.1,0.39374]
[1759734196509,0.222,4570.4,4570.3,0.411]
[1759734196812,0.99352476,4570.4,4570.3,0.7374]
[1759734197809,0.755,4570.2,4570.1,0.00250736]
[1759734198410,1.67488644,4570.2,4570.1,0.00250736]
[1759734199111,0.755,4570.2,4570.1,0.00250736]
[1759734199310,0.755,4570.2,4570.1,0.21550736]
[1759734199506,0.755,4570.2,4570.1,0.52370736]
[1759734199910,0.755,4570.2,4570.1,0.73740736]
[1759734200113,0.975,4570.2,4570.1,0.73740736]
[1759734200513,0.975,4570.2,4570.1,0.42920736]
[1759734200828,0.975,4570.2,4570.1,0.00250736]
[1759734202120,0.975,4570.2,4570.1,0.21550736]
[1759734205116,0.975,4570.2,4570.1,0.73740736]
[1759734205821,0.755,4570.2,4570.1,0.73740736]
[1759734206020,0.975,4570.2,4570.1,0.73740736]
[1759734207819,0.4336,4570.2,4570.1,0.73740736]
[1759734208117,0.00212476,4570.4,4570.1,0.73740736]
[1759734208118,0.21982476,4570.4,4570.3,0.7349]
[1759734208321,0.97712476,4570.4,4570.3,0.7349]
[1759734209426,0.97712476,4570.4,4570.3,0.5212]
[1759734209725,0.97712476,4570.4,4570.1,0.00250736]
[1759734209921,0.97712476,4570.4,4570.1,0.31070736]
[1759734210117,0.39373,4570.3,4570.2,0.213]
[1759734210323,0.755,4570.3,4570.2,0.7349]
[1759734210528,0.97712476,4570.4,4570.3,1.12862]
[1759734210825,0.97712476,4570.4,4570.3,0.7349]
[1759734212424,0.97712476,4570.4,4570.3,0.213]
[1759734213723,0.7591,4570.2,4570.1,0.00250736]
[1759734214727,0.7497,4570.2,4570.1,1.14314736]
[1759734215023,0.9697,4570.2,4570.1,0.74940736]
[1759734218821,0.9697,4570.2,4570.1,0.00250736]
[1759734219028,1.73624951,4570.2,4570.1,0.00250736]
[1759734219630,0.9697,4570.2,4570.1,0.00250736]
[1759734219931,0.7497,4569.4,4569.3,0.7469]
[1759734220232,0.9697,4569.4,4569.3,0.7469]
[1759734220926,1.73624951,4569.4,4569.3,0.00265052]
[1759734222330,2.19474641,4569.4,4569.3,0.00265052]
[1759734228233,0.3156,4569.7,4569.4,0.3364]
[1759734228440,0.5376,4570.0,4569.9,0.82446]
[1759734228631,0.9786,4570.0,4569.9,1.16086]
[1759734229137,0.9786,4570.0,4569.9,0.7671]
[1759734229741,0.7586,4570.0,4569.9,0.7671]
[1759734229942,0.3156,4569.9,4569.8,0.2117]
[1759734230237,0.7586,4569.9,4569.8,0.2117]
[1759734230434,0.7586,4569.9,4569.8,0.5481]
[1759734230845,0.443,4569.9,4569.3,41.13905052]
[1759734231034,0.7586,4569.4,4569.3,40.80265052]
[1759734231240,0.9786,4569.4,4569.3,0.00265052]
[1759734231636,0.9786,4569.4,4569.3,0.21435052]
[1759734231940,0.9786,4569.4,4569.3,0.76975052]
[1759734232540,0.7586,4569.4,4569.3,0.76975052]
[1759734232740,0.9786,4569.4,4569.3,0.76975052]
[1759734233736,0.9786,4569.4,4569.3,0.21435052]
[1759734234147,1.17766488,4571.4,4570.0,0.1224]
[1759734234440,1.94696889,4572.3,4570.0,0.1224]
[1759734234441,0.222,4571.7,4571.6,0.3364]
[1759734234638,0.222,4571.7,4571.6,44.7749]
[1759734235135,0.443,4571.7,4571.6,3.9749]
[1759734235441,0.44460305,4571.7,4571.6,3.2078]
[1759734235642,0.44460305,4571.7,4571.6,3.5442]
[1759734235841,0.44460305,4571.7,4571.6,3.7559]
[1759734236139,0.76020305,4571.7,4571.6,3.7559]
[1759734236639,1.15380305,4571.7,4571.6,3.2078]
[1759734236840,0.39365,4571.2,4571.0,3.6666]
[1759734237036,0.9786,4571.1,4571.0,3.8783]
[1759734237543,0.663,4571.1,4571.0,4.0973]
[1759734238436,0.9786,4571.1,4571.0,4.0973]
[1759734238638,0.9786,4571.1,4571.0,3.2078]
[1759734238839,0.7586,4570.6,4570.5,0.4588]
[1759734239037,0.9786,4570.6,4570.5,0.6705]
[1759734239438,0.9786,4570.6,4570.5,0.3364]
[1759734239938,0.9786,4570.6,4570.4,3.2078]
[1759734239939,1.0567,4570.6,4570.4,3.5442]
[1759734240243,0.7586,4570.5,4570.4,3.7559]
[1759734240443,0.443,4570.5,4570.4,3.9749]
[1759734240943,0.3156,4571.5,4570.5,0.4588]
[1759734241137,3.2078,4571.9,4571.5,0.4588]
[1759734241138,0.39521305,4571.7,4571.5,0.4588]
[1759734241346,0.662,4571.6,4571.5,0.6705]
[1759734241544,3.53352447,4571.6,4571.5,0.8895]
[1759734241740,0.219,4571.6,4571.5,0.8895]
[1759734241939,0.00160305,4571.7,4571.6,0.7671]
[1759734242345,0.22060305,4571.7,4571.6,0.7671]
[1759734243650,0.44260305,4571.7,4571.6,0.7671]
[1759734243846,0.66360305,4571.7,4571.6,0.7671]
[1759734245448,0.44260305,4571.7,4571.6,0.7671]
[1759734245644,0.22060305,4571.7,4571.6,0.7671]
[1759734246945,0.44260305,4571.7,4571.6,0.7671]
[1759734247443,0.22060305,4571.7,4571.6,0.7671]
[1759734247950,0.00160305,4571.7,4571.6,0.7671]
[1759734248144,0.22060305,4571.7,4571.6,0.7671]
[1759734249938,0.00160305,4571.7,4571.6,0.7671]
[1759734250144,0.00160305,4571.7,4571.6,5.7671]
[1759734251745,3.2078,4572.7,4572.6,0.7671]
[1759734251746,0.61552,4572.7,4572.6,0.7671]
[1759734251953,0.83452,4572.7,4572.6,0.7671]
[1759734252747,0.8363915,4572.7,4572.6,0.76917147]
[1759734253250,1.0573915,4572.7,4572.6,0.76917147]
[1759734253451,1.3729915,4572.7,4572.6,0.76917147]
[1759734254248,1.3729915,4572.7,4572.6,0.55017147]
[1759734256459,1.3729915,4572.7,4572.6,0.00207147]
[1759734257546,1.15217,4572.1,4572.0,3.2078]
[1759734257857,1.37117,4572.1,4572.0,3.7653]
[1759734258358,1.37117,4572.1,4572.0,3.2078]
[1759734258551,4.23272483,4572.1,4572.0,3.21001943]
[1759734258751,0.82183,4571.4,4571.3,3.2078]
[1759734258958,0.82188,4570.8,4570.7,0.2218]
[1759734259149,0.9765,4570.8,4570.7,0.4477]
[1759734259347,0.4282,4570.6,4570.5,0.3442]
[1759734259554,0.4282,4570.6,4570.5,0.6799]
[1759734259555,0.7575,4570.6,4570.5,0.6799]
[1759734259848,0.7575,4570.6,4570.5,0.55944037]
[1759734260158,0.7575,4570.6,4570.5,0.00194037]
[1759734261148,0.7575,4570.6,4569.7,3.5435]
[1759734261149,0.39377,4569.8,4569.7,3.5435]
[1759734261354,0.6472,4569.8,4569.7,3.7653]
[1759734261555,0.6472,4569.8,4569.7,3.9912]
[1759734262166,0.6472,4569.8,4569.7,3.9939893]
[1759734262355,1.37027,4569.8,4569.7,3.2105893]
[1759734262660,1.37027,4569.8,4569.7,0.0027893]
[1759734264254,4.15549101,4569.8,4569.7,0.0027893]
[1759734265550,4.15549101,4569.8,4569.7,0.5602893]
[1759734265551,3.17899101,4569.8,4569.7,0.5602893]
[1759734265758,3.60719101,4569.8,4569.7,0.5602893]
[1759734265960,4.15649101,4569.8,4569.7,0.5602893]
[1759734266162,4.15649101,4569.8,4569.7,0.3384893]
[1759734266360,4.15649101,4569.8,4569.7,0.0027893]
[1759734268553,9.15649101,4569.8,4569.7,0.0027893]
[1759734268760,1.15131,4569.3,4569.2,3.2078]
[1759734268961,1.37131,4569.3,4569.2,3.2078]
[1759734269153,1.37131,4569.3,4568.8,0.3357]
[1759734269154,3.58644718,4569.3,4568.8,0.3357]
[1759734269362,0.7575,4568.7,4568.3,0.3357]
[1759734269664,0.7575,4567.5,4567.4,3.5435]
[1759734269864,0.6482,4567.5,4567.4,3.9912]
[1759734270062,0.4399,4567.5,4567.4,3.99359921]
[1759734270258,0.22,4567.5,4567.4,3.99359921]
[1759734270460,0.3293,4567.9,4567.8,0.2218]
[1759734270758,3.77023257,4567.9,4567.8,0.5575]
[1759734270958,3.03463257,4567.9,4567.8,0.7834]
[1759734271160,0.2199,4568.6,4568.5,0.5815]
[1759734271367,0.39385,4568.9,4568.6,0.3357]
[1759734271569,0.22252362,4568.7,4568.6,3.9912]
[1759734271767,3.01870529,4568.7,4568.6,3.9912]
[1759734271963,3.23860529,4568.7,4568.6,3.9912]
[1759734273066,3.63246529,4568.7,4568.6,3.9912]
[1759734273262,3.23860529,4568.7,4568.6,3.9912]
[1759734273567,0.44242362,4568.7,4568.6,3.9912]
[1759734275162,0.22242362,4568.7,4568.6,3.9912]
[1759734275362,0.44042362,4568.7,4568.6,3.9912]
[1759734276369,0.99212362,4568.7,4568.6,3.7653]
[1759734276572,0.66222362,4568.7,4568.6,3.7653]
[1759734276762,0.66222362,4568.7,4568.6,3.9841]
[1759734278462,0.22252362,4568.7,4568.6,4.37797]
[1759734279268,0.00252362,4568.7,4568.6,4.37797]
[1759734279465,0.16152362,4568.7,4568.6,4.37797]
[1759734280268,0.16072362,4568.7,4568.6,4.37797]
[1759734280774,0.22172362,4568.7,4568.6,4.37797]
[1759734281668,4.03937,4569.8,4569.7,0.7791]
[1759734281870,4.25937,4569.8,4569.7,0.7791]
[1759734282172,0.3299,4570.2,4569.7,0.7791]
[1759734282476,0.3299,4570.2,4569.5,0.1337]
[1759734282477,3.2078,4570.3,4570.2,0.3376]
[1759734282671,3.6477777,4570.3,4570.2,0.7791]
[1759734282865,3.8675777,4570.3,4570.2,0.7791]
[1759734283070,3.8675777,4570.3,4569.5,0.9128]
[1759734283071,0.218,4569.6,4569.5,0.9128]
[1759734283271,0.6578,4569.6,4569.5,0.9128]
[1759734283475,0.9877,4569.6,4569.5,0.3376]
[1759734283671,0.9877,4569.6,4568.8,3.2078]
[1759734283672,1.16154,4568.9,4568.8,3.2078]
[1759734283981,1.38154,4568.9,4568.8,3.2078]
[1759734284575,0.39387,4568.7,4568.5,0.1338]
[1759734284776,1.16158,4568.5,4568.4,0.3376]
[1759734285081,1.16158,4568.5,4568.4,0.5603]
[1759734285277,0.4378,4568.5,4568.4,0.7791]
[1759734285583,1.05165,4568.9,4568.8,0.7791]
[1759734285975,3.96189178,4568.9,4568.8,0.7791]
[1759734289983,0.312,4569.6,4569.1,0.325]
[1759734290276,1.04799,4569.5,4569.4,0.5498]
[1759734290476,3.702534,4569.5,4569.4,0.775]
[1759734290781,0.4397,4569.5,4569.4,0.775]
[1759734291080,0.6542,4569.5,4569.4,0.775]
[1759734291977,0.9662,4569.5,4569.4,0.775]
[1759734292282,0.9662,4569.5,4569.4,0.325]
[1759734292480,0.9662,4569.5,4569.4,0.5498]
[1759734294386,0.6542,4569.5,4569.4,0.775]
[1759734294685,0.4397,4569.5,4569.4,0.775]
[1759734296291,0.39379,4569.6,4569.5,0.9069]
[1759734296292,0.61349,4569.6,4569.5,0.9069]
[1759734296693,0.83349,4569.6,4569.5,0.9069]
[1759734296893,0.61349,4569.6,4569.5,0.9069]
[1759734297085,0.83349,4569.6,4569.5,0.9069]
[1759734297587,1.04799,4569.6,4569.5,0.9069]
[1759734297988,0.4342,4569.1,4569.0,0.6817]
[1759734298294,0.2197,4568.4,4568.3,3.6578]
[1759734298496,0.4397,4568.4,4568.3,3.9828]
[1759734298697,0.83359,4568.4,4568.3,3.9828]
[1759734298898,1.04809,4568.4,4568.3,3.9828]
[1759734299999,0.22,4568.4,4568.3,3.6578]
[1759734300599,0.22,4568.4,4568.3,3.9828]
[1759734300796,2.31304051,4569.5,4569.4,0.2248]
[1759734301000,35.51299,4569.5,4569.4,0.5498]
[1759734301302,38.29609855,4569.5,4569.4,0.5498]
[1759734301600,1.14003,4569.1,4569.0,0.6817]
[1759734301798,1.36003,4569.1,4569.0,0.6817]
[1759734302002,4.17607578,4569.1,4569.0,0.6817]
[1759734302198,3.86407578,4569.1,4569.0,0.9069]
[1759734302500,4.17607578,4569.1,4569.0,0.9069]
[1759734302697,0.61357,4568.7,4568.6,0.2248]
[1759734302898,1.36007,4568.7,4568.6,0.5498]
[1759734303899,1.36007,4568.7,4568.3,3.2078]
[1759734303900,1.14009,4568.4,4568.3,3.5328]
[1759734304291,8.57828883,4568.4,4567.5,0.4569]
[1759734304496,1.14016,4567.6,4567.5,0.5498]
[1759734304698,0.7462,4567.5,4567.4,0.32739921]
[1759734304906,0.7462,4567.5,4567.4,0.55219921]
[1759734305101,3.64836517,4567.5,4567.4,0.55219921]
[1759734305298,3.64836517,4567.5,4567.4,0.00239921]
[1759734305801,3.64836517,4567.5,4567.0,0.4569]
[1759734305802,1.1402,4567.1,4567.0,0.5498]
[1759734306000,1.3602,4567.1,4567.0,0.5498]
[1759734306196,0.7462,4566.8,4566.1,3.2078]
[1759734306504,0.92578,4566.3,4566.2,0.45]
[1759734306702,1.36299992,4566.3,4566.2,0.45165628]
[1759734306999,1.36299992,4566.3,4566.2,0.00165628]
[1759734307298,4.18708843,4566.3,4566.2,0.00165628]
[1759734310305,4.18708843,4566.3,4566.2,0.22645628]
[1759734311996,0.74891992,4566.3,4566.2,0.77665628]
[1759734312200,0.00271992,4566.3,4566.2,0.77665628]
[1759734312410,0.22271992,4566.3,4566.2,0.77665628]
[1759734313801,0.75441992,4566.3,4566.2,0.77665628]
[1759734314006,0.96891992,4566.3,4566.2,0.77665628]
[1759734314506,0.22271992,4566.3,4566.2,0.77665628]
[1759734314804,0.22271992,4566.3,4566.2,5.77665628]
[1759734317299,0.96891992,4566.3,4566.2,0.45165628]
[1759734317511,0.96891992,4566.3,4566.2,0.00165628]
[1759734317708,3.80743346,4566.3,4566.2,0.00165628]
[1759734319615,0.75441992,4566.3,4566.2,0.76725628]
[1759734320112,0.53441992,4566.3,4566.2,0.76725628]
[1759734320302,0.22271992,4566.3,4566.2,0.76725628]
[1759734320909,0.98492,4567.6,4566.2,0.76725628]
[1759734320910,0.39395,4567.7,4567.4,0.2119]
[1759734321106,0.763,4567.5,4567.4,0.7527]
[1759734321415,1.119,4567.5,4567.4,0.4325]
[1759734321812,1.12181866,4567.5,4567.4,0.4325]
[1759734322306,0.39398,4567.3,4567.2,3.2078]
[1759734322612,1.12181866,4567.5,4566.6,40.8]
[1759734322613,0.2129,4566.7,4566.6,44.0078]
[1759734322818,0.763,4566.7,4566.6,44.328]
[1759734323016,0.763,4566.7,4566.6,3.9605]
[1759734323520,0.4329,4566.7,4566.6,3.9605]
[1759734323714,0.22,4566.7,4566.6,3.9605]
[1759734324110,0.543,4567.4,4567.3,0.7527]
[1759734324312,0.00281866,4567.5,4567.4,0.3202]
[1759734324515,0.76581866,4567.5,4567.4,0.7527]
[1759734325114,0.43571866,4567.5,4567.4,0.7527]
[1759734325520,0.22281866,4567.5,4567.4,0.7527]
[1759734325715,0.76581866,4567.5,4567.4,0.7527]
[1759734325914,0.7685,4567.3,4567.2,3.2078]
[1759734326619,0.7685,4567.3,4567.2,3.4197]
[1759734327514,0.7685,4567.3,4567.2,3.2078]
[1759734327721,0.7685,4566.8,4566.7,3.9605]
[1759734327922,0.763,4566.8,4566.7,3.9605]
[1759734328118,0.4329,4566.8,4566.7,3.9605]
[1759734328316,0.22,4566.8,4566.7,3.9605]
[1759734328914,3.8598155,4566.8,4566.7,3.2078]
[1759734330019,0.7685,4566.3,4566.2,0.00165628]
[1759734330223,1.38257,4566.3,4566.2,0.00165628]
[1759734330424,4.2153622,4566.3,4566.2,0.00165628]
[1759734331617,0.60704,4565.5,4565.4,3.4197]
[1759734331817,1.38264,4565.5,4565.4,3.6403]
[1759734332018,0.9885,4565.5,4565.4,3.9605]
[1759734332423,0.3301,4565.5,4565.4,3.9605]
[1759734332621,0.3301,4565.9,4565.7,0.3202]
[1759734332827,3.60186,4566.4,4566.3,0.7527]
[1759734333026,4.59036,4566.4,4566.3,0.4325]
[1759734334320,4.37036,4566.4,4566.3,0.4325]
[1759734334626,4.36626,4566.4,4566.3,0.7673]
[1759734334825,4.58626,4566.4,4566.3,0.4325]
[1759734335121,4.36626,4566.4,4566.3,0.4325]
[1759734335320,4.58626,4566.4,4566.3,0.4325]
[1759734336227,4.36626,4566.4,4566.3,0.4325]
[1759734336530,4.58626,4566.4,4566.3,0.4325]
[1759734338129,4.58626,4566.4,4566.3,0.7673]
[1759734338328,1.29839,4566.0,4565.9,0.775]
[1759734338530,1.51839,4566.0,4565.9,0.775]
[1759734338728,0.61629,4566.0,4565.9,0.775]
[1759734338928,0.22,4566.0,4565.9,0.775]
[1759734339833,0.771,4566.0,4565.9,0.775]
[1759734340328,1.1243,4566.0,4565.9,0.4402]
[1759734341630,1.1243,4566.0,4565.9,0.2178]
[1759734342525,0.94433,4565.6,4565.5,0.2178]
[1759734342822,1.38653,4565.6,4565.5,0.2178]
[1759734343023,0.9924,4565.6,4565.5,0.4402]
[1759734343228,0.9924,4565.6,4565.5,0.775]
[1759734343423,0.9924,4565.6,4565.5,0.4402]
[1759734344034,0.9924,4565.6,4565.5,0.775]
[1759734344035,0.771,4565.6,4565.5,0.775]
[1759734344422,0.9924,4565.6,4565.5,0.775]
[1759734344634,0.9924,4565.6,4565.5,0.4402]
[1759734344836,0.7724,4565.6,4565.5,0.4402]
[1759734345029,0.9924,4565.6,4565.5,0.4402]
[1759734345538,0.9924,4565.6,4565.5,0.775]
[1759734346833,0.9924,4565.6,4565.5,0.4402]
[1759734347529,0.7724,4565.6,4565.5,0.4402]
[1759734347729,0.9924,4565.6,4565.5,0.4402]
[1759734347924,0.9924,4565.6,4565.5,0.7661]
[1759734350735,0.9924,4565.6,4565.5,0.4402]
[1759734351035,0.9924,4565.6,4565.5,0.2178]
[1759734351238,1.26504,4565.5,4565.4,3.20955424]
[1759734352833,1.26504,4565.5,4565.4,3.42665424]
[1759734356140,1.14294,4565.5,4565.4,3.97165424]
[1759734356446,0.9688,4565.5,4565.4,3.97165424]
[1759734357044,1.73681202,4565.5,4565.4,3.97165424]
[1759734357339,0.39409,4566.1,4566.0,0.5323]
[1759734357541,1.15529,4566.1,4566.0,0.7621]
[1759734358446,1.36289,4566.1,4566.0,0.4362]
[1759734358642,0.39411,4565.8,4565.7,0.2171]
[1759734358947,1.91092202,4565.8,4565.7,0.2171]
[1759734360141,1.51681202,4565.8,4565.7,0.7621]
[1759734360446,0.76801202,4566.1,4566.0,0.39409]
[1759734360649,0.5412,4566.8,4566.7,0.4362]
[1759734360844,0.22,4566.8,4566.7,0.7621]
[1759734362049,1.52921202,4566.8,4566.7,0.7621]
[1759734362443,0.22,4566.8,4566.7,0.7621]
[1759734362648,0.98801202,4566.8,4566.7,0.7621]
[1759734362844,1.30541202,4566.8,4566.7,0.7621]
[1759734363047,0.7612,4566.8,4566.7,0.7621]
[1759734363535,0.22,4566.8,4566.7,0.7621]
[1759734363938,0.71139,4567.2,4567.1,0.7621]
[1759734363939,0.5412,4567.2,4567.1,0.7621]
[1759734364142,0.00281866,4567.5,4567.4,0.7621]
[1759734364646,0.00281866,4567.5,4567.4,5.7621]
[1759734365844,0.54401866,4567.5,4567.4,46.5621]
[1759734366047,0.54401866,4567.5,4567.0,3.3325]
[1759734366048,0.4314,4567.1,4567.0,0.99736295]
[1759734366244,0.2238,4566.7,4566.6,1.54236295]
[1759734366446,0.7612,4566.7,4566.6,0.7621]
[1759734366746,0.7612,4566.7,4566.6,42.34236295]
[1759734366951,0.4438,4566.7,4566.6,42.34236295]
[1759734367150,0.22,4566.7,4566.6,42.34236295]
[1759734367451,0.22,4566.7,4566.6,41.5621]
[1759734369151,0.00281866,4567.5,4567.4,0.7621]
[1759734369345,0.22281866,4567.5,4567.4,0.7621]
[1759734369750,0.54021866,4567.5,4567.4,0.7621]
[1759734370247,0.22281866,4567.5,4567.4,0.7621]
[1759734370446,0.00281866,4567.5,4567.4,0.7621]
[1759734371746,0.00281866,4567.5,4567.4,41.5621]
[1759734373657,0.87371866,4567.5,4567.4,0.4362]
[1759734374440,0.87371866,4567.5,4567.4,0.2171]
[1759734374644,0.2238,4566.9,4566.8,0.83022]
[1759734374845,0.9688,4566.9,4566.8,0.7621]
[1759734375044,0.9688,4566.9,4566.8,0.4362]
[1759734375646,0.9688,4566.9,4566.8,0.2171]
[1759734378951,0.5564,4566.2,4566.1,0.2092]
[1759734379150,0.9829,4566.2,4566.1,0.2092]
[1759734379351,0.2183,4565.7,4565.6,1.90215807]
[1759734379552,0.7764,4565.7,4565.6,41.92453]
[1759734380052,0.9829,4565.7,4565.6,0.4222]
[1759734380953,1.37702,4565.7,4565.6,0.4222]
[1759734381153,0.8927,4565.5,4565.4,3.41875424]
[1759734381949,0.5564,4565.5,4565.4,3.93995424]
[1759734382456,0.7629,4565.5,4565.4,3.93995424]
[1759734384955,0.8927,4565.5,4565.4,3.41875424]
[1759734385156,0.8927,4565.5,4564.8,0.2092]
[1759734385157,1.15709,4564.9,4564.8,0.2092]
[1759734385361,1.37709,4564.9,4564.8,0.2092]
[1759734385656,1.37709,4564.9,4564.8,0.4222]
[1759734386159,1.37709,4564.9,4564.8,0.42395184]
[1759734386460,1.37709,4564.9,4564.8,0.73215184]
[1759734386660,1.37709,4564.9,4564.8,0.42395184]
[1759734387355,1.37709,4564.9,4564.8,0.00175184]
[1759734391966,4.26729607,4564.9,4564.8,0.00175184]
[1759734392369,3.65310607,4564.9,4564.8,0.00175184]